bitfinex/quotes_ETHUSD_20240707
["timestamp","ask_amount","ask_price","bid_price","bid_amount"]
[1720344704962,1.22900768,3021.1,3020.8,4.6344]
[1720344705552,3.62440768,3021.1,3020.6,2.31738]
[1720344706799,3.62440768,3021.1,3020.6,4.63474]
[1720344707354,3.62440768,3021.1,3020.6,4.63473]
[1720344708079,3.62440768,3021.1,3020.7,2.31733]
[1720344708647,1.22900768,3021.1,3021.0,2.31711]
[1720344711367,1.22900768,3021.1,3021.0,4.63422]
[1720344712573,1.22900768,3021.1,3021.0,2.31711]
[1720344712977,3.62440768,3021.1,3020.8,4.63444]
[1720344713298,3.62440768,3021.1,3020.8,2.31721]
[1720344714162,1.22900768,3021.1,3021.0,2.31711]
[1720344714591,1.22900768,3021.1,3020.7,2.3173]
[1720344715780,1.22900768,3021.1,3020.7,2.31731]
[1720344715975,3.67900768,3021.1,3020.7,2.31731]
[1720344716190,3.67900768,3021.1,3020.8,2.31726]
[1720344717278,3.67900768,3021.1,3020.6,2.31741]
[1720344717498,3.67900768,3021.1,3020.2,4.7343]
[1720344717698,3.67900768,3021.1,3020.8,2.31726]
[1720344718466,4.39790845,3021.1,3020.4,2.31753]
[1720344719093,4.39790845,3021.1,3020.4,4.63505]
[1720344719499,4.39790845,3021.1,3020.5,2.31749]
[1720344721088,4.39790845,3021.1,3020.8,2.3172]
[1720344721089,3.67900768,3021.1,3020.8,2.3172]
[1720344721403,1.22900768,3021.1,3020.8,2.3172]
[1720344723814,1.22900768,3021.1,3020.9,2.31718]
[1720344724130,1.22900768,3021.1,3021.0,2.31711]
[1720344727059,1.22900768,3021.1,3021.0,4.63422]
[1720344727357,3.51,3021.2,3021.1,4.63406]
[1720344727934,3.51,3021.2,3021.1,2.31703]
[1720344728445,3.51,3021.2,3021.1,4.63406]
[1720344731499,3.51,3021.2,3020.9,2.31712]
[1720344731705,3.51,3021.2,3020.7,2.31729]
[1720344731958,3.51,3021.2,3020.9,2.31718]
[1720344732161,3.51,3021.2,3020.9,4.63431]
[1720344733057,3.51,3021.2,3020.7,2.31729]
[1720344733212,3.51,3021.2,3020.8,2.31725]
[1720344733521,4.106,3021.2,3020.7,2.31729]
[1720344733721,2.45,3021.1,3020.3,2.31758]
[1720344733933,2.45,3021.1,3020.4,2.31752]
[1720344734130,0.93852944,3021.0,3020.4,2.31752]
[1720344734330,0.33885294,3020.9,3020.4,2.31752]
[1720344735262,0.33885294,3020.9,3020.3,2.31758]
[1720344735407,0.33885294,3020.9,3020.4,2.31757]
[1720344737447,0.33885294,3020.9,3020.2,2.31766]
[1720344737642,0.33885294,3020.9,3020.3,2.31764]
[1720344738950,0.33885294,3020.9,3020.4,2.31752]
[1720344739144,0.93857227,3021.0,3020.4,2.31752]
[1720344739321,2.79564624,3021.1,3020.4,2.31752]
[1720344740049,0.93855539,3021.0,3020.2,2.31765]
[1720344740720,2.4286,3020.9,3020.2,2.31765]
[1720344740917,2.4286,3020.9,3020.3,2.31764]
[1720344741125,2.4286,3020.9,3020.3,4.63524]
[1720344741853,2.4286,3020.9,3020.4,2.31756]
[1720344743150,2.4286,3020.9,3019.8,7.6223]
[1720344743151,2.4286,3020.9,3019.9,0.06621605]
[1720344743351,0.34564624,3021.1,3020.6,2.31741]
[1720344744264,1.42475452,3021.1,3020.6,2.31741]
[1720344745052,2.4286,3021.0,3020.2,2.31769]
[1720344745252,2.4286,3021.0,3020.1,2.31775]
[1720344745919,2.4286,3021.0,3020.3,2.31762]
[1720344746566,2.4286,3021.0,3020.4,2.31755]
[1720344747052,2.4286,3021.0,3020.3,2.31762]
[1720344747258,3.61561911,3021.0,3020.3,2.31762]
[1720344747623,3.61561911,3021.0,3020.3,4.63521]
[1720344748163,3.61561911,3021.0,3020.4,2.31754]
[1720344749784,1.18701911,3021.0,3020.1,2.31776]
[1720344750067,2.4286,3020.6,3019.6,2.31814]
[1720344750352,2.4286,3020.4,3019.6,4.63626]
[1720344750540,2.4286,3020.4,3019.6,2.31812]
[1720344750853,2.4286,3020.4,3019.7,2.3181]
[1720344751057,2.4286,3020.4,3019.4,2.3183]
[1720344751258,0.93896582,3020.3,3019.6,2.31818]
[1720344751552,0.33675658,3020.2,3019.6,2.31818]
[1720344751760,2.4286,3020.1,3019.4,2.31827]
[1720344752057,2.4286,3020.1,3019.5,2.31825]
[1720344752434,2.4286,3020.1,3019.3,2.31838]
[1720344752633,0.62753566,3020.0,3019.3,2.31838]
[1720344753032,0.62753566,3020.0,3019.1,2.3185]
[1720344753223,0.62753566,3020.0,3019.4,2.31829]
[1720344753760,0.62753566,3020.0,3019.3,2.31836]
[1720344753955,0.62753566,3020.0,3019.3,4.63673]
[1720344754154,0.30561357,3019.9,3019.3,4.63673]
[1720344754459,0.30561357,3019.9,3018.8,4.59337]
[1720344754460,2.2944,3019.8,3019.0,2.31861]
[1720344754661,2.2944,3019.8,3019.2,2.31847]
[1720344755157,2.2944,3019.8,3019.2,4.6369]
[1720344755456,2.2944,3019.8,3019.2,2.31843]
[1720344757153,2.2944,3019.8,3019.0,2.31861]
[1720344757361,0.22944,3019.7,3019.0,2.31861]
[1720344757859,1.45844768,3019.7,3019.1,2.31852]
[1720344758050,1.22900768,3019.7,3019.1,2.31852]
[1720344758428,1.22900768,3019.7,3019.2,2.31849]
[1720344759131,1.22900768,3019.7,3019.1,2.31852]
[1720344759460,1.22900768,3019.7,3019.4,2.31829]
[1720344761065,1.22900768,3019.7,3019.2,2.31846]
[1720344761632,1.22900768,3019.7,3019.2,4.63688]
[1720344761849,1.22900768,3019.7,3019.2,2.31842]
[1720344762255,1.22900768,3019.7,3019.3,2.31838]
[1720344765546,1.22900768,3019.7,3019.6,2.31818]
[1720344766053,1.22900768,3019.7,3018.9,3.0]
[1720344766054,2.4281,3019.6,3019.3,2.31836]
[1720344766468,2.4281,3019.6,3019.3,4.63672]
[1720344766662,1.22900768,3019.7,3019.0,2.31861]
[1720344766863,1.22900768,3019.7,3019.5,2.31825]
[1720344767768,1.22900768,3019.7,3019.3,2.3184]
[1720344768064,2.4281,3019.6,3019.1,2.3185]
[1720344768572,2.4281,3019.6,3019.1,4.63703]
[1720344768736,2.4281,3019.6,3019.2,2.31848]
[1720344769143,2.79381077,3019.6,3019.2,2.31848]
[1720344776651,2.79381077,3019.6,3019.0,2.31859]
[1720344776857,2.79381077,3019.6,3018.9,2.31871]
[1720344777375,2.79381077,3019.6,3018.4,2.3191]
[1720344777376,2.4233,3019.5,3018.4,2.31905]
[1720344777576,1.27958474,3019.4,3018.5,2.31898]
[1720344777779,1.27958474,3019.4,3018.6,2.31893]
[1720344778076,0.979,3019.2,3018.6,2.31893]
[1720344778641,3.4023,3019.1,3018.6,2.31893]
[1720344778846,0.69123,3019.0,3018.6,2.31893]
[1720344780357,3.51,3019.2,3018.6,2.31893]
[1720344781674,0.979,3019.1,3018.6,2.31893]
[1720344784195,0.979,3019.1,3018.4,2.31905]
[1720344784196,2.4233,3018.8,3018.4,4.6381]
[1720344784885,2.4233,3018.8,3018.5,2.31901]
[1720344785696,0.979,3018.7,3018.2,2.31919]
[1720344785897,1.31923,3018.7,3018.2,2.31919]
[1720344786192,1.31923,3018.7,3017.9,2.31945]
[1720344786193,0.979,3018.5,3018.0,2.31934]
[1720344786495,0.34023,3018.7,3018.1,2.31931]
[1720344786660,1.31923,3018.7,3018.1,2.31931]
[1720344788491,1.31923,3018.7,3018.1,4.63862]
[1720344788691,2.4233,3018.8,3018.2,2.31925]
[1720344788865,3.4023,3018.8,3018.2,2.31925]
[1720344789777,2.4233,3018.8,3018.2,2.31925]
[1720344792281,2.4233,3019.1,3018.1,5.71718]
[1720344792480,3.0,3019.0,3018.1,5.71718]
[1720344792689,5.4233,3019.1,3018.6,2.31894]
[1720344793008,7.16521366,3019.1,3018.6,2.31894]
[1720344794212,2.4233,3019.1,3018.7,2.31887]
[1720344794437,8.01683659,3019.2,3018.9,2.31867]
[1720344794868,8.01683659,3019.2,3019.0,2.31862]
[1720344795068,3.51,3019.2,3019.1,4.63714]
[1720344795296,3.51,3019.2,3019.1,5.61614]
[1720344796518,3.51,3019.2,3019.1,4.63714]
[1720344797687,3.51,3019.2,3019.1,2.31857]
[1720344798781,3.51,3019.2,3019.1,4.63714]
[1720344799602,3.51,3019.2,3019.1,2.31857]
[1720344800323,3.51,3019.2,3019.1,4.63714]
[1720344801038,3.51,3019.2,3019.1,2.31857]
[1720344802388,3.51,3019.2,3019.0,2.31859]
[1720344803133,3.51,3019.2,3018.8,2.31874]
[1720344803434,3.51,3019.2,3018.8,4.63747]
[1720344803640,3.51,3019.2,3018.9,2.31872]
[1720344804290,3.51,3019.2,3019.0,2.31863]
[1720344807104,6.2211,3019.2,3018.8,2.31873]
[1720344807416,6.2211,3019.2,3018.5,2.31903]
[1720344807622,6.2211,3019.2,3018.5,4.63801]
[1720344808258,6.2211,3019.2,3018.5,2.31898]
[1720344808568,0.62211,3019.1,3018.5,2.31898]
[1720344809209,0.62211,3019.1,3018.5,4.63796]
[1720344809607,3.51,3019.2,3018.6,0.06625836]
[1720344809860,3.51,3019.2,3019.1,2.31857]
[1720344812616,3.51,3019.2,3019.1,7.02044]
[1720344813457,3.51,3019.2,3019.1,4.63714]
[1720344814167,3.51,3019.2,3019.1,2.31857]
[1720344815517,3.51,3019.2,3019.1,4.63714]
[1720344819884,3.51,3019.2,3019.1,5.61514]
[1720344820056,3.51,3019.2,3019.1,2.31857]
[1720344820257,3.51,3019.2,3019.0,3.29658]
[1720344820597,3.861,3019.2,3018.9,2.31872]
[1720344821176,3.861,3019.2,3018.9,4.63739]
[1720344821857,3.861,3019.2,3018.9,2.31867]
[1720344822597,3.861,3019.2,3018.9,4.63734]
[1720344823502,3.51,3019.2,3018.9,4.63734]
[1720344823807,3.51,3019.2,3019.0,2.31863]
[1720344824773,3.51,3019.2,3019.1,4.63714]
[1720344826159,3.51,3019.2,3019.1,2.31857]
[1720344826479,5.8706,3019.2,3018.9,2.31867]
[1720344826879,5.8706,3019.2,3018.9,4.63734]
[1720344827086,5.8706,3019.2,3018.9,2.31867]
[1720344827669,5.8706,3019.2,3018.7,2.31883]
[1720344827670,5.8706,3019.2,3018.7,4.63765]
[1720344827864,6.45766,3019.2,3018.7,4.63764]
[1720344828282,6.45766,3019.2,3018.7,2.31882]
[1720344828679,6.45766,3019.2,3018.5,4.63795]
[1720344828861,6.45766,3019.2,3018.5,2.31896]
[1720344829868,6.45766,3019.2,3018.6,2.31892]
[1720344830099,0.645766,3019.1,3018.6,2.31892]
[1720344832410,5.8706,3019.2,3018.9,2.31871]
[1720344834123,3.51,3019.2,3019.0,2.31863]
[1720344834936,3.51,3019.2,3019.1,2.31857]
[1720344837016,3.51,3019.2,3019.1,4.63714]
[1720344841704,3.51,3019.2,3019.1,2.31857]
[1720344842706,3.51,3019.2,3019.1,4.63714]
[1720344849723,3.51,3019.2,3019.1,2.31857]
[1720344849892,3.51,3019.2,3019.1,4.63714]
[1720344851707,3.51,3019.2,3019.1,2.31857]
[1720344852322,3.51,3019.2,3019.1,4.63714]
[1720344853891,3.51,3019.2,3019.1,2.31857]
[1720344854102,3.51,3019.2,3019.1,4.63714]
[1720344856894,3.51,3019.2,3019.1,2.31857]
[1720344858817,3.51,3019.2,3019.1,4.63714]
[1720344861428,3.51,3019.2,3019.1,2.31857]
[1720344864845,3.861,3019.2,3018.8,2.31873]
[1720344865017,2.3731,3019.1,3018.4,2.31903]
[1720344865337,2.3731,3019.1,3018.5,2.31896]
[1720344865716,2.3731,3019.1,3018.4,2.31903]
[1720344865944,1.5629257,3019.0,3018.4,2.31903]
[1720344866440,3.31263067,3018.9,3018.4,2.31903]
[1720344866741,2.3731,3018.9,3018.4,3.29703]
[1720344871112,3.861,3019.2,3018.7,2.31887]
[1720344871341,3.0,3019.1,3018.7,2.31887]
[1720344871640,4.37409366,3019.1,3018.7,2.31887]
[1720344872325,4.37409366,3019.1,3018.8,2.31879]
[1720344872525,3.51,3019.2,3018.8,4.63758]
[1720344872722,3.51,3019.2,3018.8,5.61558]
[1720344873130,3.51,3019.2,3019.0,2.31863]
[1720344877648,3.51,3019.2,3018.8,2.31879]
[1720344878937,3.51,3019.2,3019.0,2.31861]
[1720344880616,3.51,3019.2,3019.0,4.63721]
[1720344881147,3.51,3019.2,3019.1,2.31857]
[1720344887935,3.51,3019.2,3018.9,2.31865]
[1720344888846,3.51,3019.2,3019.0,2.31863]
[1720344889374,3.51,3019.2,3018.9,2.31871]
[1720344891067,3.51,3019.2,3019.0,2.31864]
[1720344892568,3.51,3019.2,3019.0,4.63723]
[1720344893776,3.51,3019.2,3019.1,4.63714]
[1720344901388,3.51,3019.2,3019.1,2.31857]
[1720344901609,3.861,3019.2,3018.9,2.31868]
[1720344901760,3.861,3019.2,3019.1,2.31857]
[1720344902389,3.51,3019.2,3019.1,2.31857]
[1720344902915,3.51,3019.2,3019.1,4.63714]
[1720344904073,3.51,3019.2,3019.1,2.31857]
[1720344904597,3.51,3019.2,3019.1,4.63714]
[1720344907186,5.73584427,3019.7,3019.1,4.63714]
[1720344907187,4.50683659,3019.7,3019.6,7.08586]
[1720344907385,2.2963,3020.4,3020.2,2.31772]
[1720344907585,2.2963,3021.1,3020.0,2.31783]
[1720344907897,1.16826453,3021.0,3020.6,2.31741]
[1720344908462,1.16826453,3021.0,3020.6,4.63476]
[1720344908812,0.22963,3021.0,3020.7,2.31733]
[1720344910065,3.22963,3021.0,3020.7,2.31733]
[1720344911169,0.22963,3021.0,3020.8,2.31726]
[1720344911373,7.03530768,3021.1,3020.9,2.31717]
[1720344911374,4.73900768,3021.1,3020.9,2.31717]
[1720344911595,4.73900768,3021.1,3020.9,4.63431]
[1720344911974,4.73900768,3021.1,3021.0,2.31711]
[1720344915896,4.73900768,3021.1,3020.8,2.3172]
[1720344916073,4.73900768,3021.1,3020.7,2.3173]
[1720344916074,5.21290845,3021.1,3020.7,2.3173]
[1720344916474,5.21290845,3021.1,3020.8,2.31726]
[1720344916877,5.21290845,3021.1,3020.7,2.3173]
[1720344917073,2.4095,3021.0,3019.9,2.2524]
[1720344917386,2.4095,3020.9,3019.9,2.3179]
[1720344917570,2.9595,3020.9,3019.9,2.3179]
[1720344917775,3.0,3020.8,3019.9,2.3179]
[1720344917977,0.59595,3020.7,3019.9,2.3179]
[1720344918204,0.59595,3020.7,3019.7,2.31807]
[1720344918544,0.59595,3020.7,3019.7,2.31805]
[1720344918810,0.59595,3020.7,3019.8,2.31797]
[1720344919806,2.4095,3020.6,3019.6,2.31814]
[1720344919994,2.4095,3020.6,3019.3,2.31838]
[1720344919995,2.4095,3020.4,3019.3,2.31838]
[1720344920199,4.73900768,3020.0,3019.1,2.31851]
[1720344920394,4.73900768,3020.0,3019.3,2.31837]
[1720344920599,2.4095,3019.9,3019.1,2.3185]
[1720344920984,2.4095,3019.9,3019.0,2.31864]
[1720344921192,0.71485077,3019.8,3019.0,2.31864]
[1720344921606,0.71485077,3019.8,3019.1,2.31856]
[1720344921984,2.4095,3019.9,3019.2,2.31848]
[1720344922183,2.4095,3019.9,3018.9,2.31865]
[1720344922420,4.73900768,3020.0,3019.5,2.31819]
[1720344924821,4.73900768,3020.0,3019.3,2.31836]
[1720344925822,4.73900768,3020.0,3019.1,2.31852]
[1720344926136,0.92458443,3019.9,3019.2,2.31844]
[1720344927046,2.2686,3019.8,3019.2,2.31844]
[1720344928935,2.2686,3019.8,3018.8,4.63752]
[1720344929139,2.2686,3019.8,3018.8,2.31873]
[1720344930231,5.2686,3019.8,3018.8,2.31873]
[1720344930546,0.61931844,3019.7,3019.0,2.31859]
[1720344930724,3.61931844,3019.7,3019.0,2.31859]
[1720344932140,3.22480291,3019.6,3018.3,2.31914]
[1720344932362,6.77543659,3019.5,3018.3,2.31914]
[1720344932639,2.2686,3019.3,3018.3,2.31914]
[1720344932942,1.22900768,3019.0,3018.3,2.31914]
[1720344933237,2.32830206,3018.9,3018.1,2.31932]
[1720344933434,2.32830206,3018.9,3018.2,2.31925]
[1720344934937,2.32830206,3018.9,3018.3,2.31918]
[1720344936153,0.05970206,3018.9,3017.7,5.31961]
[1720344936359,0.05970206,3018.9,3018.6,2.31888]
[1720344936526,0.05970206,3018.9,3018.7,2.31887]
[1720344937250,0.05970206,3018.9,3018.7,2.31882]
[1720344937562,0.05970206,3018.9,3018.8,2.3188]
[1720344938154,0.05970206,3018.9,3018.8,4.6376]
[1720344940581,0.05970206,3018.9,3018.8,2.3188]
[1720344940756,0.05970206,3018.9,3018.6,2.31891]
[1720344940757,0.05970206,3018.9,3018.7,2.31886]
[1720344941077,0.05970206,3018.9,3018.6,2.3189]
[1720344941582,0.05970206,3018.9,3018.7,2.31886]
[1720344944085,0.53957303,3018.9,3018.5,2.31902]
[1720344944233,0.53957303,3018.9,3018.3,2.31916]
[1720344944554,0.53957303,3018.9,3018.3,4.63828]
[1720344944757,0.53957303,3018.9,3018.3,2.31912]
[1720344946144,0.05970206,3018.9,3018.7,2.31887]
[1720344946898,0.05970206,3018.9,3018.5,4.63796]
[1720344947069,0.05970206,3018.9,3018.5,2.31898]
[1720344947649,0.05970206,3018.9,3018.3,2.31913]
[1720344948863,0.05970206,3018.9,3018.4,2.31909]
[1720344949665,0.53957303,3018.9,3018.4,2.31909]
[1720344951368,0.53957303,3018.9,3018.3,2.31918]
[1720344951550,2.4944,3018.8,3018.2,2.31925]
[1720344952178,0.0589614,3018.7,3018.2,2.31925]
[1720344954409,0.36228464,3018.7,3018.2,2.31925]
[1720344955273,0.36228464,3018.7,3018.2,4.63846]
[1720344955511,0.36228464,3018.7,3018.2,2.31921]
[1720344955512,0.0589614,3018.7,3018.2,2.31921]
[1720344956912,0.0589614,3018.7,3018.3,2.31918]
[1720344959122,0.0589614,3018.7,3017.6,7.688]
[1720344959273,0.0589614,3018.7,3018.1,2.31928]
[1720344960589,0.0589614,3018.7,3018.2,2.31921]
[1720344960793,0.25533614,3018.6,3018.2,2.31921]
[1720344961000,0.25533614,3018.6,3018.0,2.31936]
[1720344961305,0.05894192,3018.5,3018.0,2.31936]
[1720344962108,0.05894192,3018.5,3017.6,2.342]
[1720344962407,2.4982,3018.4,3017.6,2.31972]
[1720344962582,0.25571419,3018.3,3017.6,2.31972]
[1720344962783,0.31451441,3018.3,3017.6,2.31972]
[1720344964200,0.31451441,3018.3,3017.7,4.63921]
[1720344964404,0.05880022,3018.3,3017.8,2.31955]
[1720344964603,0.05880022,3018.3,3017.4,0.06627333]
[1720344964604,0.05880022,3018.3,3018.0,4.63876]
[1720344964774,0.05880022,3018.3,3018.0,2.31935]
[1720344966279,0.05880022,3018.3,3017.8,2.31952]
[1720344967195,0.31450024,3018.3,3017.8,2.31952]
[1720344967506,0.31450024,3018.3,3017.6,2.31965]
[1720344967706,0.31450024,3018.3,3017.6,4.63931]
[1720344967908,0.31450024,3018.3,3017.6,2.31965]
[1720344969695,2.4982,3018.2,3017.4,2.31983]
[1720344970026,2.4982,3017.9,3017.0,2.32016]
[1720344970390,0.05829593,3017.8,3017.2,2.32002]
[1720344974246,0.05829593,3017.8,3016.8,2.2913]
[1720344974405,0.05829593,3017.8,3017.6,2.31971]
[1720344975531,0.78784629,3017.8,3017.4,2.31984]
[1720344975725,0.05829593,3017.8,3017.5,2.31978]
[1720344976561,0.05829593,3017.8,3017.7,2.31964]
[1720344976893,4.73900768,3018.0,3017.5,2.48457685]
[1720344977099,0.05760814,3017.9,3017.5,2.48457685]
[1720344977304,0.05760814,3017.9,3017.8,4.63914]
[1720344979295,0.05760814,3017.9,3017.8,2.31957]
[1720344980697,0.41436895,3017.9,3017.6,2.31968]
[1720344981193,0.41436895,3017.9,3017.4,2.31984]
[1720344982118,0.41436895,3017.9,3017.4,4.63966]
[1720344982327,0.41436895,3017.9,3017.5,2.31978]
[1720344986236,0.62837689,3017.8,3017.5,2.31978]
[1720344986632,0.05762072,3017.7,3017.5,2.31978]
[1720344987132,3.51,3018.0,3017.7,2.31959]
[1720344987334,3.51,3018.0,3017.8,2.31952]
[1720344987504,3.51,3018.0,3017.7,2.31959]
[1720344987707,3.861,3018.0,3017.7,2.31959]
[1720344988637,0.05777649,3017.9,3017.7,2.31959]
[1720344989232,0.05777649,3017.9,3017.7,4.63919]
[1720344989640,2.3594,3017.8,3017.6,2.31972]
[1720344989839,0.05777649,3017.9,3017.6,4.63939]
[1720344990153,6.2204,3018.0,3017.7,2.31963]
[1720344990307,0.05790454,3017.9,3017.7,2.31963]
[1720344991546,0.05790454,3017.9,3017.8,2.31957]
[1720344994443,0.05790454,3017.9,3017.7,2.31959]
[1720344994637,0.41469499,3017.9,3017.7,2.31959]
[1720344995736,0.41469499,3017.9,3017.8,2.31957]
[1720344995942,2.78339499,3017.9,3017.5,2.31975]
[1720344996110,0.05790454,3017.9,3017.7,2.3196]
[1720344996948,0.05790454,3017.9,3017.8,2.31957]
[1720344997447,0.05790454,3017.9,3017.7,4.63919]
[1720344998624,0.05790454,3017.9,3017.8,2.31957]
[1720344999246,0.05790454,3017.9,3017.8,4.63914]
[1720345003955,0.05790454,3017.9,3017.8,2.31957]
[1720345008684,0.05790454,3017.9,3017.8,4.63914]
[1720345011704,0.05790454,3017.9,3017.8,2.31957]
[1720345012501,0.05790454,3017.9,3017.6,4.63936]
[1720345012689,2.78339499,3017.9,3017.6,4.63936]
[1720345012894,2.78339499,3017.9,3017.6,2.31967]
[1720345013673,2.78339499,3017.9,3017.6,4.63934]
[1720345013870,2.78339499,3017.9,3017.6,2.31967]
[1720345014475,2.78339499,3017.9,3017.7,2.31963]
[1720345014886,2.78339499,3017.9,3017.6,2.31967]
[1720345015885,2.78339499,3017.9,3017.6,4.63935]
[1720345016103,2.78339499,3017.9,3017.6,2.31967]
[1720345017208,0.6293395,3017.8,3017.4,2.31982]
[1720345017381,0.6293395,3017.8,3017.4,4.63965]
[1720345017582,0.05797116,3017.7,3017.4,4.63965]
[1720345017786,2.72549045,3017.9,3017.4,4.63965]
[1720345018089,0.05793083,3017.8,3017.5,2.31978]
[1720345019484,0.68727296,3017.8,3017.4,2.31987]
[1720345019684,1.62731933,3017.8,3017.4,2.31987]
[1720345020983,0.68727296,3017.8,3017.4,2.31987]
[1720345021214,1.62735102,3017.8,3017.4,2.31987]
[1720345021383,0.94008688,3017.7,3017.4,2.31987]
[1720345021585,0.0578349,3017.6,3017.4,2.31987]
[1720345021813,1.56942897,3017.8,3017.4,2.31987]
[1720345022013,0.05779033,3017.5,3017.4,2.31987]
[1720345022213,0.94008684,3017.8,3017.4,4.63968]
[1720345022422,3.51,3018.0,3017.5,2.31979]
[1720345022577,0.93998964,3017.9,3017.5,2.31979]
[1720345024727,0.94003232,3017.9,3017.5,2.31979]
[1720345025039,1.38503555,3017.9,3017.5,2.31979]
[1720345025185,0.94005929,3017.8,3017.4,2.31987]
[1720345025385,1.38506252,3017.9,3017.4,2.31987]
[1720345025603,1.38506252,3017.9,3017.4,4.63969]
[1720345025804,1.38506252,3017.9,3017.5,2.31977]
[1720345027326,0.94005929,3017.9,3017.7,2.31964]
[1720345027625,3.51,3018.0,3017.5,2.3459]
[1720345028498,3.51,3018.0,3017.9,2.31949]
[1720345028700,3.51,3018.0,3017.9,4.63898]
[1720345028906,3.51,3018.0,3017.9,6.98488]
[1720345031093,3.51,3018.0,3017.9,9.30437]
[1720345032053,3.51,3018.0,3017.9,6.98488]
[1720345033823,3.5636825,3018.0,3017.9,4.63898]
[1720345034210,3.5636825,3018.0,3017.9,2.31949]
[1720345034706,3.5636825,3018.0,3017.9,4.63898]
[1720345035056,3.5636825,3018.0,3017.9,2.31949]
[1720345035956,3.5636825,3018.0,3017.9,4.63898]
[1720345037546,3.5636825,3018.0,3017.9,2.31949]
[1720345038036,3.5636825,3018.0,3017.9,4.63898]
[1720345044616,5.8172825,3018.0,3017.7,2.3196]
[1720345044811,5.8172825,3018.0,3017.8,2.31951]
[1720345045008,6.39901075,3018.0,3017.8,2.31951]
[1720345045453,6.39901075,3018.0,3017.8,4.63903]
[1720345045667,3.5636825,3018.0,3017.8,4.63903]
[1720345046118,3.5636825,3018.0,3017.9,2.31949]
[1720345050614,3.5636825,3018.0,3017.9,4.63898]
[1720345053561,3.5636825,3018.0,3017.9,7.11998]
[1720345053741,3.5636825,3018.0,3017.9,9.43947]
[1720345053939,3.5636825,3018.0,3017.9,10.41847]
[1720345064563,3.5636825,3018.0,3017.9,7.93747]
[1720345066060,3.5636825,3018.0,3017.9,5.61798]
[1720345067057,3.5636825,3018.0,3017.9,7.93747]
[1720345068771,3.5636825,3018.0,3017.9,4.63898]
[1720345068955,3.5636825,3018.0,3017.9,5.61798]
[1720345070536,3.5636825,3018.0,3017.9,4.63898]
[1720345070733,3.5636825,3018.0,3017.9,5.61798]
[1720345071347,3.5636825,3018.0,3017.9,3.29849]
[1720345071567,3.5636825,3018.0,3017.9,2.31949]
[1720345074857,3.92005075,3018.0,3017.7,2.31957]
[1720345075056,3.92005075,3018.0,3017.7,3.29857]
[1720345075275,3.92005075,3018.0,3017.7,2.31957]
[1720345075489,2.3228,3017.9,3017.3,2.31991]
[1720345075686,0.62428508,3017.8,3017.4,2.31983]
[1720345075897,0.67842007,3017.8,3017.4,2.31983]
[1720345077188,0.67842007,3017.8,3017.5,2.31978]
[1720345080411,2.3228,3017.7,3017.3,2.31989]
[1720345080625,0.30012201,3017.6,3017.3,2.31989]
[1720345080805,0.35393444,3017.6,3017.3,2.31989]
[1720345082904,0.35393444,3017.6,3016.9,2.32023]
[1720345083090,2.3228,3017.5,3016.7,2.32041]
[1720345083296,2.3228,3017.3,3016.7,4.64078]
[1720345083625,2.3228,3017.3,3016.7,2.32037]
[1720345083809,0.05373725,3017.2,3016.7,2.32037]
[1720345084997,2.3228,3017.1,3016.7,2.32037]
[1720345085186,2.56045373,3017.1,3016.5,2.32049]
[1720345085395,0.05351901,3017.0,3016.3,5.62035]
[1720345085576,0.05351901,3017.0,3016.3,3.29966]
[1720345085777,0.05351901,3017.0,3016.3,3.29965]
[1720345086077,2.3228,3016.9,3016.3,3.29965]
[1720345086396,2.63760034,3016.9,3016.3,2.32065]
[1720345086603,2.3228,3016.8,3016.1,2.32085]
[1720345086804,2.3228,3016.8,3015.9,2.32096]
[1720345087022,2.3228,3016.6,3015.9,2.32096]
[1720345087321,0.053236,3016.5,3015.9,2.32096]
[1720345087684,0.2908396,3016.5,3015.9,2.32096]
[1720345087999,0.2908396,3016.5,3016.1,2.32086]
[1720345090407,0.053236,3016.5,3016.2,2.32077]
[1720345090918,0.053236,3016.5,3016.2,3.29977]
[1720345092809,0.053236,3016.5,3016.2,2.32077]
[1720345094083,0.053236,3016.5,3016.3,2.32072]
[1720345096721,0.053236,3016.5,3016.4,3.29964]
[1720345096926,2.65459727,3016.9,3016.5,2.32054]
[1720345097101,0.61645973,3016.8,3016.5,2.32054]
[1720345097496,0.61645973,3016.8,3016.5,2.32052]
[1720345098207,0.61645973,3016.8,3016.3,2.32068]
[1720345099430,0.61645973,3016.8,3016.3,4.64134]
[1720345100108,2.3932,3016.7,3016.3,4.64134]
[1720345100424,2.7203057,3016.7,3016.2,2.32078]
[1720345102143,2.7203057,3016.7,3016.3,2.32071]
[1720345102622,2.3932,3016.7,3016.3,0.979]
[1720345102937,2.3932,3016.7,3016.6,2.32049]
[1720345103111,2.3932,3016.7,3016.5,2.32056]
[1720345103628,2.3932,3016.7,3016.6,2.32049]
[1720345103823,2.3932,3016.9,3016.6,2.32049]
[1720345104025,3.51,3017.0,3016.7,2.32039]
[1720345108146,3.51,3017.0,3016.8,2.32031]
[1720345108344,3.51,3017.0,3016.9,2.32026]
[1720345108728,3.56240104,3017.0,3016.9,3.29926]
[1720345109238,3.56240104,3017.0,3016.9,5.61952]
[1720345110149,5.94930104,3017.0,3016.7,2.32036]
[1720345111221,3.56240104,3017.0,3016.7,2.32036]
[1720345111914,3.56240104,3017.0,3016.8,2.32033]
[1720345114348,3.56240104,3017.0,3016.9,2.32026]
[1720345114849,3.56240104,3017.0,3016.9,4.64052]
[1720345116318,3.56240104,3017.0,3016.9,6.96078]
[1720345120159,0.05240104,3017.0,3016.9,11.72704]
[1720345120358,0.05240104,3017.0,3016.9,17.07904]